bitfinex/quotes_BTCUSD_20230906
["timestamp","ask_amount","ask_price","bid_price","bid_amount"]
[1693983594874,0.01785253,25788.0,25785.0,3.17413988]
[1693983595123,0.01985253,25788.0,25785.0,3.19913988]
[1693983595336,0.01785253,25787.0,25785.0,3.37879799]
[1693983595545,0.01785253,25787.0,25785.0,4.07038388]
[1693983595934,0.002,25786.0,25785.0,3.97478388]
[1693983596601,0.002,25786.0,25785.0,3.99978388]
[1693983596805,0.01985253,25787.0,25785.0,3.97478388]
[1693983597028,0.02185253,25787.0,25785.0,3.99978388]
[1693983597447,0.02185253,25787.0,25785.0,3.22413988]
[1693983597867,0.01985253,25787.0,25785.0,3.19913988]
[1693983598275,0.002,25786.0,25785.0,3.19913988]
[1693983598864,0.01785253,25787.0,25785.0,3.19913988]
[1693983598865,0.01785253,25787.0,25785.0,3.17413988]
[1693983599284,0.01985253,25787.0,25785.0,3.19913988]
[1693983599892,0.002,25786.0,25785.0,3.22413988]
[1693983600103,0.01985253,25787.0,25785.0,3.19913988]
[1693983600912,0.01785253,25787.0,25785.0,3.17413988]
[1693983601344,0.002,25786.0,25785.0,3.19913988]
[1693983601551,0.002,25786.0,25785.0,3.22413988]
[1693983601758,0.01985253,25787.0,25785.0,3.19913988]
[1693983601965,0.02185253,25787.0,25785.0,2.44849588]
[1693983602171,0.01985253,25787.0,25785.0,2.42349588]
[1693983602588,0.002,25786.0,25785.0,2.42349588]
[1693983603148,0.002,25786.0,25785.0,2.44849588]
[1693983603344,0.002,25786.0,25785.0,2.42349588]
[1693983603923,0.01785253,25787.0,25785.0,2.39849588]
[1693983604394,0.01985253,25787.0,25785.0,2.42349588]
[1693983604840,0.01985253,25787.0,25785.0,2.44849588]
[1693983604841,0.002,25786.0,25785.0,2.44849588]
[1693983605062,0.01985253,25787.0,25785.0,2.42349588]
[1693983605477,0.02185253,25787.0,25785.0,2.44849588]
[1693983605689,0.09677192,25787.0,25785.0,1.62285288]
[1693983606109,0.004,25786.0,25785.0,1.67285288]
[1693983606312,0.002,25786.0,25785.0,2.42349688]
[1693983606493,0.002,25786.0,25785.0,2.44849688]
[1693983607330,0.1129322,25787.0,25785.0,2.42349688]
[1693983607537,0.1149322,25787.0,25785.0,2.44849688]
[1693983607943,0.1109322,25787.0,25785.0,2.39849688]
[1693983608146,0.002,25786.0,25785.0,2.42349688]
[1693983608348,0.004,25786.0,25785.0,2.44849688]
[1693983608691,0.002,25786.0,25785.0,2.42349688]
[1693983608894,0.1129322,25787.0,25785.0,2.42349688]
[1693983609342,0.002,25786.0,25785.0,2.44849688]
[1693983609551,0.002,25786.0,25785.0,3.22414088]
[1693983609970,0.002,25786.0,25785.0,4.34211047]
[1693983610968,0.1109322,25787.0,25785.0,4.29211047]
[1693983611165,0.1129322,25787.0,25786.0,1.11796959]
[1693983611515,0.1109322,25787.0,25786.0,3.44481159]
[1693983612294,0.1149322,25787.0,25786.0,2.351842]
[1693983612511,0.1149322,25787.0,25786.0,3.4698033]
[1693983613540,0.1129322,25787.0,25786.0,3.4698033]
[1693983613742,0.1129322,25787.0,25786.0,3.53882364]
[1693983613946,0.16147204,25787.0,25786.0,2.44586234]
[1693983615135,0.16147204,25787.0,25786.0,3.56384396]
[1693983615569,0.16147204,25787.0,25786.0,2.44586234]
[1693983615776,0.16147204,25787.0,25786.0,3.56384536]
[1693983625862,0.34763139,25787.0,25786.0,3.56384536]
[1693983627509,0.44071108,25787.0,25786.0,3.56384536]
[1693983627709,0.83346991,25787.0,25786.0,3.56384536]
[1693983633074,0.83355412,25787.0,25786.0,3.56384536]
[1693983633277,0.64731056,25787.0,25786.0,3.56384536]
[1693983634404,0.64731056,25787.0,25786.0,2.78823136]
[1693983634617,0.51436242,25787.0,25786.0,2.01261736]
[1693983634830,0.51436242,25787.0,25786.0,2.78823136]
[1693983635695,0.51436242,25787.0,25786.0,1.67024834]
[1693983638709,0.41461136,25787.0,25786.0,1.67024834]
[1693983644197,0.41461136,25787.0,25786.0,1.66609808]
[1693983651954,0.41461136,25787.0,25786.0,2.44171208]
[1693983652187,0.41461136,25787.0,25786.0,3.55972291]
[1693983654245,0.41461136,25787.0,25786.0,3.55972416]
[1693983655074,0.5310764,25787.0,25786.0,3.55972416]
[1693983658758,0.41461136,25787.0,25786.0,3.55972416]
[1693983659175,0.41461136,25787.0,25786.0,2.78411016]
[1693983662336,0.41461136,25787.0,25786.0,3.55972416]
[1693983666036,0.41461136,25787.0,25786.0,3.49070382]
[1693983666646,0.41461136,25787.0,25786.0,3.49070473]
[1693983666848,0.41461136,25787.0,25786.0,3.54394475]
[1693983677277,0.41461136,25787.0,25786.0,3.48796519]
[1693983680193,0.69385039,25787.0,25786.0,3.48796519]
[1693983681198,0.69385039,25787.0,25786.0,2.71235119]
[1693983686778,0.69385039,25787.0,25786.0,3.48796519]
[1693983702311,0.69385039,25787.0,25786.0,3.48797441]
[1693983712847,0.998105,25787.0,25786.0,0.05324002]
[1693983713100,1.39086383,25787.0,25786.0,0.05324002]
[1693983713295,1.39086383,25787.0,25785.0,1.55126]
[1693983713296,1.07671992,25787.0,25785.0,0.775621]
[1693983713461,1.25230565,25786.0,25785.0,0.775621]
[1693983713662,0.93785663,25786.0,25785.0,0.775621]
[1693983713859,0.93785663,25786.0,25784.0,1.571317]
[1693983714072,0.51335883,25785.0,25784.0,1.571317]
[1693983714288,0.53335883,25785.0,25784.0,1.871317]
[1693983714873,0.81271285,25785.0,25784.0,1.871317]
[1693983716793,0.98248882,25785.0,25784.0,1.871317]
[1693983716990,0.98448882,25785.0,25784.0,1.893317]
[1693983717203,0.98648882,25785.0,25784.0,1.915317]
[1693983717745,0.98648882,25785.0,25784.0,1.895317]
[1693983717950,0.98648882,25785.0,25784.0,1.915317]
[1693983720196,0.98648882,25785.0,25784.0,1.97355984]
[1693983720915,0.98648882,25785.0,25784.0,0.40224284]
[1693983721115,0.98648882,25785.0,25784.0,1.97355984]
[1693983722128,0.98648882,25785.0,25784.0,1.17790084]
[1693983722344,0.98648882,25785.0,25784.0,0.40224284]
[1693983722548,1.1916326,25785.0,25784.0,0.10224284]
[1693983722745,1.9472766,25785.0,25784.0,0.10224284]
[1693983722954,3.89827362,25785.0,25784.0,0.10224284]
[1693983723183,0.01785253,25780.0,25779.0,1.551641]
[1693983723401,0.53121136,25780.0,25779.0,1.551641]
[1693983723608,0.53121136,25780.0,25779.0,1.50497072]
[1693983723820,0.37106945,25780.0,25779.0,0.7911116]
[1693983724024,0.53121136,25780.0,25779.0,0.7911116]
[1693983724655,0.37107017,25780.0,25779.0,0.7911116]
[1693983724867,0.766829,25780.0,25779.0,0.83777488]
[1693983725275,0.766829,25780.0,25779.0,0.6437803]
[1693983725484,0.766829,25780.0,25779.0,0.70573818]
[1693983725909,0.769829,25780.0,25779.0,0.06195788]
[1693983726336,0.769829,25780.0,25778.0,1.4196373]
[1693983726545,0.46395443,25779.0,25778.0,1.4196373]
[1693983726754,0.27795334,25779.0,25778.0,1.4196373]
[1693983728062,0.28095334,25779.0,25778.0,1.4196373]
[1693983729057,0.16035334,25779.0,25778.0,1.4196373]
[1693983729255,0.16335334,25779.0,25778.0,1.4196373]
[1693983730861,0.16335334,25779.0,25778.0,1.47722046]
[1693983731430,0.16335334,25779.0,25778.0,0.83343816]
[1693983731712,0.34935443,25779.0,25778.0,0.83343816]
[1693983732203,0.34935443,25779.0,25778.0,0.775855]
[1693983732204,0.34635443,25779.0,25778.0,0.775855]
[1693983732408,0.34935443,25779.0,25778.0,0.775855]
[1693983732613,0.34935443,25779.0,25778.0,0.83343816]
[1693983732826,0.34335443,25779.0,25778.0,0.83343816]
[1693983733032,0.34635443,25779.0,25778.0,0.83343816]
[1693983733236,0.34935443,25779.0,25778.0,0.83343816]
[1693983734416,0.34935443,25779.0,25778.0,0.05758316]
[1693983734798,0.20985362,25779.0,25778.0,0.05758316]
[1693983735510,0.34920198,25779.0,25778.0,0.05758316]
[1693983735721,0.20985362,25779.0,25778.0,0.05758316]
[1693983737330,0.66852996,25779.0,25778.0,0.05758316]
[1693983738935,0.20101764,25780.0,25779.0,0.06]
[1693983739147,0.13929429,25783.0,25782.0,0.02]
[1693983739382,0.13929429,25783.0,25782.0,3.78484338]
[1693983739566,0.01785253,25784.0,25782.0,4.14258394]
[1693983739778,0.01785253,25784.0,25783.0,0.1206]
[1693983739983,0.01785253,25784.0,25783.0,3.223416]
[1693983740594,0.01985253,25784.0,25783.0,3.223416]
[1693983741007,0.01785253,25784.0,25783.0,3.378598]
[1693983741835,0.01985253,25784.0,25783.0,3.378598]
[1693983742438,0.01985253,25784.0,25783.0,3.402598]
[1693983743044,0.02185253,25784.0,25783.0,3.426598]
[1693983749877,0.02185253,25784.0,25783.0,2.650894]
[1693983750309,0.02185253,25784.0,25783.0,2.7086269]
[1693983754607,0.02185253,25784.0,25783.0,2.73949682]
[1693983757459,0.02185253,25784.0,25783.0,3.51520082]
[1693983757866,0.02185253,25784.0,25783.0,3.39460082]
[1693983767463,0.02185253,25784.0,25783.0,0.29178482]
[1693983767464,0.16114682,25784.0,25783.0,0.29178482]
[1693983767664,0.16114682,25784.0,25783.0,0.13660282]
[1693983768067,0.34288961,25784.0,25783.0,0.08860282]
[1693983768275,0.15714682,25784.0,25783.0,0.08860282]
[1693983768472,0.15814682,25784.0,25783.0,0.09760282]
[1693983769284,0.15814682,25784.0,25783.0,0.87330682]
[1693983770132,0.2510357,25784.0,25783.0,0.87330682]
[1693983770337,0.2510357,25784.0,25783.0,0.09760282]
[1693983770338,0.25103576,25784.0,25783.0,0.09760282]
[1693983770757,0.25103576,25784.0,25783.0,0.87330682]
[1693983771967,0.15814682,25784.0,25783.0,0.87330682]
[1693983772587,0.34388961,25784.0,25783.0,0.87330682]
[1693983773346,0.34388961,25784.0,25783.0,0.09760282]
[1693983773583,0.15814682,25784.0,25783.0,0.87330682]
[1693983775216,0.34388961,25784.0,25783.0,0.87330682]
[1693983776208,0.20459532,25784.0,25783.0,0.09760282]
[1693983776401,0.20459532,25784.0,25783.0,0.87330682]
[1693983777401,0.20459532,25784.0,25783.0,0.09760282]
[1693983777999,0.66319637,25784.0,25783.0,0.09760282]
[1693983778402,0.66319637,25784.0,25783.0,0.87330682]
[1693983778911,0.89536919,25784.0,25783.0,0.87330682]
[1693983780845,0.7096264,25784.0,25783.0,0.87330682]
[1693983781275,0.7096264,25784.0,25783.0,0.09760282]
[1693983783682,0.47745358,25784.0,25783.0,0.09760282]
[1693983784689,0.47745358,25784.0,25783.0,0.0667329]
[1693983784909,1.53171616,25784.0,25783.0,0.0667329]
[1693983785411,2.74790799,25784.0,25783.0,0.0667329]
[1693983785610,1.69334541,25784.0,25783.0,0.0667329]
[1693983786083,2.74809612,25784.0,25783.0,0.0667329]
[1693983786195,3.77131067,25784.0,25783.0,0.0577329]
[1693983786389,3.78415067,25784.0,25783.0,0.002]
[1693983786628,3.87317067,25784.0,25783.0,0.003]
[1693983786828,3.26436139,25784.0,25783.0,0.06044105]
[1693983787036,2.89200356,25784.0,25783.0,0.06044105]
[1693983791094,3.80351756,25784.0,25783.0,0.06044105]
[1693983791302,4.13437918,25784.0,25783.0,0.06044105]
[1693983791508,4.14019918,25784.0,25783.0,0.06044105]
[1693983791707,4.14133918,25784.0,25783.0,0.06044105]
[1693983791904,4.14115918,25784.0,25783.0,0.06044105]
[1693983792154,3.99704221,25784.0,25783.0,0.06044105]
[1693983792333,3.99692221,25784.0,25783.0,0.06044105]
[1693983792531,4.38356748,25784.0,25783.0,0.06044105]
[1693983792773,4.99060846,25784.0,25783.0,0.06044105]
[1693983792960,4.37636916,25784.0,25783.0,0.06044105]
[1693983793313,4.30418916,25784.0,25783.0,0.06044105]
[1693983799558,4.24418916,25784.0,25783.0,0.06044105]
[1693983800194,5.19468316,25784.0,25783.0,0.06044105]
[1693983800411,5.25850316,25784.0,25783.0,0.003]
[1693983800622,5.25730316,25784.0,25783.0,0.003]
[1693983800802,5.21736316,25784.0,25783.0,0.06044936]
[1693983801068,5.25796316,25784.0,25783.0,0.06044936]
[1693983801270,5.25928316,25784.0,25783.0,0.06044936]
[1693983801471,5.25922316,25784.0,25783.0,0.003]
[1693983801649,5.25910316,25784.0,25783.0,0.003]
[1693983801869,5.25904316,25784.0,25783.0,0.06044936]
[1693983802088,5.24704316,25784.0,25783.0,0.05944936]
[1693983802224,0.08,25782.0,25777.0,2.3473028]
[1693983802447,0.01785253,25778.0,25777.0,2.3473028]
[1693983802661,0.01785253,25778.0,25777.0,2.1920748]
[1693983803417,0.01785253,25778.0,25777.0,2.2020748]
[1693983803617,0.01785253,25778.0,25777.0,1.4261908]
[1693983803831,0.01785253,25778.0,25777.0,1.4161908]
[1693983804070,0.01985253,25778.0,25777.0,1.4221908]
[1693983805558,0.02285253,25778.0,25777.0,1.4321908]
[1693983807818,0.24125386,25778.0,25777.0,1.4321908]
[1693983808188,0.24125386,25778.0,25777.0,2.2080758]
[1693983808395,0.02285253,25778.0,25777.0,2.2080758]
[1693983810070,0.02285253,25778.0,25777.0,2.26275188]
[1693983811829,0.30584728,25778.0,25777.0,2.26275188]
[1693983812641,0.52111097,25778.0,25777.0,2.26275188]
[1693983823779,0.56760835,25778.0,25777.0,2.26275188]
[1693983825787,0.75359786,25778.0,25777.0,2.26275188]
[1693983829800,0.61410573,25778.0,25777.0,2.26275188]
[1693983830780,1.07278026,25778.0,25777.0,2.26275188]
[1693983831981,1.07278013,25778.0,25777.0,2.26275188]
[1693983836111,1.30526702,25778.0,25777.0,2.26275188]
[1693983836785,1.30526702,25778.0,25777.0,2.25775188]
[1693983837929,1.07278013,25778.0,25777.0,3.03363688]
[1693983838127,0.85751644,25778.0,25777.0,3.03363688]
[1693983838735,0.39884204,25778.0,25777.0,3.03363688]
[1693983838943,0.85751288,25778.0,25777.0,3.03363688]
[1693983839343,0.39884204,25778.0,25777.0,3.03363688]
[1693983839567,0.53853236,25778.0,25777.0,3.03363688]
[1693983839768,0.39884204,25778.0,25777.0,3.03363688]
[1693983840951,0.5385384,25778.0,25777.0,3.03363688]
[1693983841300,0.35254889,25778.0,25777.0,3.03363688]
[1693983844813,0.5385384,25778.0,25777.0,3.03363688]
[1693983850265,0.39884204,25778.0,25777.0,3.03363688]
[1693983853220,0.53856253,25778.0,25777.0,3.03363688]
[1693983853867,0.39884204,25778.0,25777.0,3.03363688]
[1693983861239,0.53856524,25778.0,25777.0,3.03363688]
[1693983875938,0.39884204,25778.0,25777.0,3.03363688]
[1693983881555,0.85749797,25778.0,25777.0,3.03363688]
[1693983900267,0.83964544,25778.0,25777.0,3.03363688]
[1693983900481,0.23293327,25779.0,25777.0,3.90078215]
[1693983900741,0.09317331,25779.0,25778.0,3.91056527]
[1693983901073,0.23293327,25780.0,25778.0,3.96265955]
[1693983901282,0.23293327,25780.0,25779.0,3.2238]
[1693983901485,0.09317331,25780.0,25779.0,3.2238]
[1693983901902,0.11102584,25780.0,25779.0,3.2238]
[1693983902102,0.11102584,25780.0,25779.0,3.1033]
[1693983902656,0.01785253,25780.0,25779.0,3.1033]
[1693983903695,0.01985253,25780.0,25779.0,3.1273]
[1693983903901,0.02185253,25780.0,25779.0,3.1513]
[1693983908999,0.21185253,25780.0,25779.0,3.1513]
[1693983914997,0.21185253,25780.0,25779.0,3.18295359]
[1693983915425,0.21185253,25780.0,25779.0,3.23504021]
[1693983930839,0.02185253,25780.0,25779.0,3.23504021]
[1693983941744,0.11493019,25780.0,25779.0,3.23504021]
[1693983942944,0.02185253,25780.0,25779.0,3.23504021]
[1693983943557,0.11493019,25780.0,25779.0,3.23504021]
[1693983943758,0.30493019,25780.0,25779.0,3.23504021]
[1693983950519,0.30501229,25780.0,25779.0,3.23504021]
[1693983951563,0.44475194,25780.0,25779.0,3.23504021]
[1693983951761,0.30501229,25780.0,25779.0,3.23504021]
[1693983951933,0.44475194,25780.0,25779.0,3.23504021]
[1693983952141,0.30501229,25780.0,25779.0,3.23504021]
[1693983952435,0.44475194,25780.0,25779.0,3.23504021]
[1693983958643,0.30501229,25780.0,25779.0,3.23504021]
[1693983959356,0.28715976,25780.0,25779.0,3.23504021]
[1693983959565,0.30501229,25780.0,25779.0,3.23504021]
[1693983982285,0.11501229,25780.0,25779.0,3.23504021]
[1693983987226,0.25475194,25780.0,25779.0,3.23504021]
[1693983987436,0.16159218,25780.0,25779.0,3.23504021]
[1693983988842,0.9574243,25780.0,25779.0,1.68339021]
[1693983989042,1.19032372,25780.0,25779.0,1.68339021]
[1693983989586,1.38032372,25780.0,25779.0,1.63130359]
[1693983989994,1.38032372,25780.0,25779.0,1.68902947]
[1693983991556,1.1474243,25780.0,25779.0,1.68902947]
[1693983992318,1.38032372,25780.0,25779.0,1.68902947]
[1693983992516,1.1474243,25780.0,25779.0,1.68902947]
[1693983994459,1.2679243,25780.0,25779.0,0.88155088]
[1693983994894,1.50082372,25780.0,25779.0,1.65737588]
[1693983995108,1.49882372,25780.0,25779.0,1.63337588]
[1693983995524,1.50082372,25780.0,25779.0,1.65737588]
[1693983995935,1.49882372,25780.0,25779.0,1.63337588]
[1693983996143,1.49882372,25780.0,25779.0,1.62937588]
[1693983996347,1.49882372,25780.0,25779.0,1.65337588]
[1693983996555,1.50082372,25780.0,25779.0,1.65337588]
[1693983996750,1.2659243,25780.0,25779.0,1.62937588]
[1693983996987,1.2679243,25780.0,25779.0,1.65237588]
[1693983997193,1.50082372,25780.0,25779.0,1.65237588]
[1693983997602,1.2679243,25780.0,25779.0,1.65237588]
[1693983997802,1.50082372,25780.0,25779.0,1.65237588]
[1693983999335,1.50082372,25780.0,25779.0,0.87655088]
[1693984000742,1.2679243,25780.0,25779.0,0.87655088]
[1693984000946,1.2679243,25780.0,25779.0,1.65237588]
[1693984001543,1.2679243,25780.0,25779.0,0.87655088]
[1693984002738,0.87610684,25780.0,25779.0,1.65237588]
[1693984003700,0.87610684,25780.0,25779.0,2.42820088]
[1693984004230,0.45487015,25780.0,25779.0,2.42820088]
[1693984004466,0.64100532,25780.0,25779.0,2.42820088]
[1693984004922,0.64100532,25780.0,25779.0,1.65237588]
[1693984005612,0.64100532,25780.0,25779.0,2.42820088]
[1693984005811,0.64100532,25780.0,25779.0,1.65237588]
[1693984007193,0.64100532,25780.0,25779.0,2.42820088]
[1693984008694,0.45287015,25780.0,25779.0,2.40820088]
[1693984008870,0.45387015,25780.0,25779.0,2.42020088]
[1693984009489,0.45187015,25780.0,25779.0,2.39720088]
[1693984009689,0.45287015,25780.0,25779.0,2.41120088]
[1693984011010,0.63900532,25780.0,25779.0,1.63537588]
[1693984013644,0.63900532,25780.0,25779.0,2.41120088]
[1693984015274,0.63900532,25780.0,25779.0,1.63537588]
[1693984016694,0.49940394,25780.0,25779.0,1.63537588]
[1693984017887,0.49940394,25780.0,25779.0,2.41120088]
[1693984018791,0.49940394,25780.0,25779.0,1.63537588]
[1693984021685,0.49940769,25780.0,25779.0,1.63537588]
[1693984022083,0.49940769,25780.0,25779.0,2.41120088]
[1693984023099,0.6390146,25780.0,25779.0,2.41120088]
[1693984024114,0.49940769,25780.0,25779.0,2.41120088]
[1693984026498,0.88409946,25780.0,25779.0,2.41120088]
[1693984026907,0.78068322,25780.0,25779.0,2.41120088]
[1693984028662,0.39599145,25780.0,25779.0,2.41120088]
[1693984029458,0.53564055,25780.0,25779.0,2.41120088]
[1693984030344,0.39599145,25780.0,25779.0,2.41120088]
[1693984031443,0.3495209,25780.0,25779.0,2.41120088]
[1693984031652,0.3495209,25780.0,25779.0,3.18702588]
[1693984032297,0.44263903,25780.0,25779.0,3.18702588]
[1693984032502,0.3495209,25780.0,25779.0,3.18702588]
[1693984037026,0.3495209,25780.0,25779.0,2.41120088]
[1693984037224,0.3495209,25780.0,25779.0,3.18702588]
[1693984038664,0.3495209,25780.0,25779.0,2.41120088]
[1693984040541,0.59488778,25780.0,25779.0,1.63537588]
[1693984041118,1.01979325,25780.0,25779.0,2.39920088]
[1693984041360,0.64035833,25780.0,25779.0,2.39920088]
[1693984041511,0.64135833,25780.0,25779.0,2.41120088]
[1693984041721,1.02078903,25780.0,25779.0,2.41120088]
[1693984041877,1.01978903,25780.0,25779.0,2.39920088]
[1693984042080,0.64035833,25780.0,25779.0,2.39920088]
[1693984042282,1.02050175,25780.0,25779.0,2.40220088]
[1693984042700,0.64035833,25780.0,25779.0,2.40220088]
[1693984042901,0.63935833,25780.0,25779.0,2.38820088]
[1693984043116,1.01878394,25780.0,25779.0,2.38820088]
[1693984043377,1.01978394,25780.0,25779.0,2.39420088]
[1693984043548,0.64035833,25780.0,25779.0,2.39420088]
[1693984043716,1.01978248,25780.0,25779.0,2.39420088]
[1693984050453,0.7744156,25780.0,25779.0,2.39420088]
[1693984063971,1.00708925,25780.0,25779.0,2.39420088]
[1693984064163,0.7744156,25780.0,25779.0,2.39420088]
[1693984064575,1.00708925,25780.0,25779.0,2.39420088]
[1693984065537,1.00903402,25780.0,25779.0,2.39420088]
[1693984081942,0.82275877,25780.0,25779.0,2.39420088]
[1693984082613,1.00903439,25780.0,25779.0,2.39420088]
[1693984083119,0.82275877,25780.0,25779.0,2.39420088]
[1693984102907,1.06850069,25780.0,25779.0,2.39420088]
[1693984103070,0.99135949,25780.0,25779.0,0.06672588]
[1693984103272,0.99135949,25780.0,25779.0,0.84255088]
[1693984103719,0.99135949,25780.0,25779.0,0.06672588]
[1693984105615,0.83565662,25780.0,25779.0,0.06672588]
[1693984110947,0.83565662,25780.0,25779.0,0.09778894]
[1693984112173,0.83565662,25780.0,25779.0,0.06672588]
[1693984118260,0.83565662,25780.0,25779.0,0.84255088]
[1693984121202,0.83565662,25780.0,25779.0,0.06672588]
[1693984122843,0.64565662,25780.0,25779.0,0.06672588]
[1693984125648,1.42145162,25780.0,25779.0,0.06672588]
[1693984126551,0.64565662,25780.0,25779.0,0.06672588]
[1693984133890,0.67465432,25780.0,25779.0,0.06672588]
[1693984135080,0.86465432,25780.0,25779.0,0.06672588]
[1693984135877,0.83565662,25780.0,25779.0,0.06672588]
[1693984136358,1.61145162,25780.0,25779.0,0.06672588]
[1693984137623,0.83565662,25780.0,25779.0,0.06672588]
[1693984139232,1.61145162,25780.0,25779.0,0.06672588]
[1693984139668,0.83565662,25780.0,25779.0,0.06672588]
[1693984140468,0.83565662,25780.0,25779.0,0.84255088]
[1693984140709,0.45459445,25780.0,25779.0,0.84255088]
[1693984140908,0.83540311,25780.0,25779.0,0.84255088]
[1693984141526,0.58966119,25780.0,25779.0,0.84255088]
[1693984143795,0.58966119,25780.0,25779.0,1.61837588]
[1693984143956,0.44138589,25780.0,25779.0,3.17002588]
[1693984144131,0.82219455,25780.0,25779.0,3.17002588]
[1693984144732,1.00823345,25780.0,25779.0,3.17002588]
[1693984145386,0.82219455,25780.0,25779.0,3.17002588]
[1693984146487,1.00824487,25780.0,25779.0,3.17002588]
[1693984146688,0.82219455,25780.0,25779.0,3.17002588]
[1693984150548,1.00826116,25780.0,25779.0,3.17002588]
[1693984150951,0.7757278,25780.0,25779.0,3.17002588]
[1693984153618,0.39491914,25780.0,25779.0,3.17002588]
[1693984155590,0.53443328,25780.0,25779.0,3.17002588]
[1693984162788,0.53443328,25780.0,25779.0,2.39420088]
[1693984168399,0.34836667,25780.0,25779.0,2.39420088]
[1693984168841,0.53443328,25780.0,25779.0,2.39420088]
[1693984169974,0.53443328,25780.0,25779.0,2.336475]
[1693984170182,0.53443328,25780.0,25779.0,2.388937]
[1693984175297,0.39491914,25780.0,25779.0,2.388937]
[1693984179168,0.77923269,25780.0,25779.0,2.388937]
[1693984183467,1.01176605,25780.0,25779.0,2.388937]
[1693984185341,0.82569944,25780.0,25779.0,2.388937]
[1693984190796,0.63569944,25780.0,25779.0,2.388937]
[1693984193694,0.63569944,25780.0,25779.0,3.164762]
[1693984193895,0.63569944,25780.0,25779.0,2.379937]
[1693984194035,0.63569944,25780.0,25779.0,3.155762]
[1693984194237,0.43758551,25780.0,25779.0,3.155762]
[1693984194445,0.63569944,25780.0,25779.0,3.155762]
[1693984194663,0.43758744,25780.0,25779.0,3.155762]
[1693984194897,0.63569944,25780.0,25779.0,3.155762]
[1693984195106,0.43758747,25780.0,25779.0,3.155762]
[1693984195316,0.82190102,25780.0,25779.0,3.155762]
[1693984196606,0.63569944,25780.0,25779.0,3.155762]
[1693984196812,0.82190494,25780.0,25779.0,2.379937]
[1693984197773,0.82190494,25780.0,25779.0,2.327475]
[1693984197947,0.82190494,25780.0,25779.0,3.15761942]
[1693984198376,0.63569944,25780.0,25779.0,3.15761942]
[1693984198506,0.82190224,25780.0,25779.0,3.15761942]
[1693984198932,0.82190224,25780.0,25779.0,2.38179442]
[1693984199157,0.63569944,25780.0,25779.0,3.15761942]
[1693984199917,0.80404862,25780.0,25779.0,3.15761942]
[1693984200118,0.82190115,25780.0,25779.0,3.27811942]
[1693984200366,0.15850802,25780.0,25779.0,3.27811942]
[1693984201513,0.34850802,25780.0,25779.0,3.27811942]
[1693984204349,0.34850802,25780.0,25779.0,3.27812563]
[1693984204553,0.44158625,25780.0,25779.0,3.27812563]
[1693984204765,0.20885253,25780.0,25779.0,3.27812563]
[1693984205002,0.34846992,25780.0,25779.0,3.27812563]
[1693984205678,0.44154328,25780.0,25779.0,3.15762563]
[1693984208422,0.30192589,25780.0,25779.0,3.15762563]
[1693984209313,0.52334992,25780.0,25779.0,3.15762563]
[1693984210358,0.52334992,25780.0,25779.0,3.27812563]
[1693984218340,0.30192589,25780.0,25779.0,3.27812563]
[1693984218691,0.30192589,25780.0,25779.0,2.38180063]
[1693984218889,0.5384232,25780.0,25779.0,2.38180063]
[1693984219657,0.30192589,25780.0,25779.0,2.38180063]
[1693984220465,0.57949219,25780.0,25779.0,2.38180063]
[1693984220959,0.30192589,25780.0,25779.0,2.38180063]
[1693984222900,0.30192589,25780.0,25779.0,3.15762563]
[1693984223095,0.30192589,25780.0,25779.0,2.38180063]
[1693984227270,0.56815431,25780.0,25779.0,2.38180063]
[1693984227445,0.30192589,25780.0,25779.0,2.38180063]
[1693984231309,0.20885253,25780.0,25779.0,2.38180063]
[1693984231507,0.30190793,25780.0,25779.0,2.38180063]
[1693984234154,0.44149103,25780.0,25779.0,2.38180063]
[1693984237306,0.34843563,25780.0,25779.0,2.38180063]
[1693984237521,0.34843563,25780.0,25779.0,1.60597563]
[1693984240896,0.53454643,25780.0,25779.0,1.60597563]
[1693984241596,0.53458283,25780.0,25779.0,1.60597563]
[1693984242811,0.53458283,25780.0,25779.0,2.38180063]
[1693984243604,0.39496333,25780.0,25779.0,2.38180063]
[1693984244411,0.39496333,25780.0,25779.0,1.60597563]
[1693984245684,0.20496333,25780.0,25779.0,1.60597563]
[1693984247597,0.58377741,25780.0,25779.0,1.60597563]
[1693984251611,0.20496333,25780.0,25779.0,1.60597563]
[1693984251876,0.20496333,25780.0,25779.0,2.38180063]
[1693984253571,0.34455618,25780.0,25779.0,2.38180063]
[1693984254147,0.20496333,25780.0,25779.0,2.38180063]
[1693984254321,0.34455575,25780.0,25779.0,2.38180063]
[1693984257053,0.34455575,25780.0,25779.0,1.60597563]
[1693984258628,0.53455575,25780.0,25779.0,1.60597563]
[1693984259597,0.39496333,25780.0,25779.0,1.60597563]
[1693984260192,0.53455512,25780.0,25779.0,1.60597563]
[1693984260592,0.39496333,25780.0,25779.0,1.60597563]
[1693984264952,0.39496333,25780.0,25779.0,0.05432563]
[1693984265155,0.39496333,25780.0,25779.0,0.83015063]
[1693984265768,0.39496333,25780.0,25779.0,1.60597563]
[1693984274510,0.39496333,25780.0,25779.0,2.38180063]
[1693984275050,0.77410601,25780.0,25779.0,2.38180063]
[1693984281736,1.00674451,25780.0,25779.0,2.38180063]
[1693984282153,1.00674451,25780.0,25779.0,1.60597563]
[1693984289466,0.82063371,25780.0,25779.0,1.60597563]
[1693984290329,0.82063371,25780.0,25779.0,0.83015063]
[1693984290889,0.82063371,25780.0,25779.0,1.60597563]
[1693984292131,0.82063371,25780.0,25779.0,0.83015063]
[1693984293267,0.82063371,25780.0,25779.0,1.60597563]
[1693984294054,0.82063371,25780.0,25779.0,0.83015063]
[1693984294457,0.82063371,25780.0,25779.0,1.60597563]
[1693984295566,0.82063371,25780.0,25779.0,0.83015063]
[1693984297618,0.82063371,25780.0,25779.0,1.60597563]
[1693984304282,0.82063371,25780.0,25779.0,0.83015063]
[1693984304695,0.7130152,25780.0,25779.0,0.05432563]
[1693984304912,0.7130152,25780.0,25776.0,0.175227]
[1693984304913,0.01785253,25777.0,25776.0,0.951135]
[1693984305121,0.01785253,25777.0,25776.0,1.727049]
[1693984305330,0.25050214,25777.0,25776.0,1.727049]
[1693984305539,0.25050214,25777.0,25776.0,1.77294044]
[1693984305737,0.62964482,25777.0,25776.0,1.77294044]
[1693984305943,0.63064482,25777.0,25776.0,1.77794044]
[1693984306341,1.0344189,25777.0,25776.0,1.00202644]
[1693984307266,1.0344189,25777.0,25776.0,0.82680544]
[1693984307468,0.80076929,25777.0,25776.0,0.82180544]
[1693984307677,0.81376929,25777.0,25776.0,0.82280544]
[1693984307876,0.82976929,25777.0,25776.0,0.82480544]
[1693984308486,0.45062661,25777.0,25776.0,0.778914]
[1693984308686,0.45062661,25777.0,25776.0,0.82194242]
[1693984309220,0.45062661,25777.0,25776.0,0.04602842]
[1693984309424,0.59011666,25777.0,25776.0,0.04602842]
[1693984309625,0.59011666,25777.0,25775.0,2.14091071]
[1693984309832,0.3504167,25776.0,25775.0,2.48304]
[1693984310237,0.3504167,25776.0,25775.0,1.707105]
[1693984310811,0.3504167,25776.0,25775.0,1.708105]